Cogmind - Beta 15 @@@ ROGUE MODE // 2025.08.10 @ 21:25:10 Player: Dadrick Result: Destroyed by DAS Turret with DAS Cannon Performance ------------- Evolutions (1) 500 Regions Visited (4) 800 Robots Destroyed (60) 300 Value Destroyed (1249) 1249 Prototype IDs (27) 540 Alien Tech Used (0) 0 Bonus (84) 84 TOTAL SCORE: 3473 Bonus ------- Aligned with FarCom 300 Friendly Fire -216 Cogmind --------- Core Integrity 0/400 Matter 278/300 Energy 84/100 System Corruption 4% Temperature Cool (2) Movement Treading (240) Ox1 Location -9/Exiles Parts ------- > --- POWER (1) -------- (None) > --- PROPULSION (3) --- Light Treads Light Treads > --- UTILITY (2) ------ Heat Sink High-capacity Storage Unit > --- WEAPON (3) ------- Improved EM Shotgun Autogun > --- INVENTORY (20) --- Reinforced Ion Engine Reinforced Fission Core Advanced Myomer Leg Advanced Myomer Leg Experimental Heat Sink Huge Storage Unit 8R-AWN's Armor/EX Tractor Beam Light EM Pulse Cannon Light EM Pulse Cannon 8R-AWN's Boregun Grenade Launcher Datajack Longsword +1 Peak State ------------ > --- POWER ------------ Ion Engine > --- PROPULSION ------- Light Treads Light Treads Advanced Treads > --- UTILITY ---------- Experimental Heat Sink High-capacity Storage Unit > --- WEAPON ----------- 8R-AWN's Boregun Longsword +1 > --- INVENTORY -------- Reinforced Ion Engine Reinforced Fission Core Light Treads Advanced Myomer Leg Advanced Myomer Leg Heat Sink Huge Storage Unit 8R-AWN's Armor/EX Tractor Beam Improved EM Shotgun Improved EM Shotgun Improved EM Shotgun Light EM Pulse Cannon Light EM Pulse Cannon Autogun Grenade Launcher Datajack [Rating: 39] Favorites ----------- Power Improved Ion Engine Engine Improved Ion Engine Power Core Light Nuclear Core Propulsion Advanced Treads Treads Advanced Treads Leg Advanced Myomer Leg Utility Medium Storage Unit Device Heat Sink Storage Medium Storage Unit Processor Targeting Computer Protection Light Armor Plating Weapon Improved EM Shotgun Energy Gun Improved EM Shotgun Energy Cannon Light EM Pulse Cannon Ballistic Gun Light Assault Rifle Launcher Grenade Launcher Special Weapon Mining Laser Slashing Weapon Mining Claw Build | -11 -10 -9 -9 -9 ------- Run | Yrd Mat Mat Min Exi Slots Evolved 2 | . . 2 . . Power . | . . . . . Propulsion 1 | . . 1 . . Utility . | . . . . . Weapon 1 | . . 1 . . Parts Attached 46 | 7 12 11 . 16 Power 5 | 1 2 1 . 1 Engine 4 | 1 1 1 . 1 Core 1 | . 1 . . . Reactor . | . . . . . Propulsion 14 | 2 3 4 . 5 Treads 13 | 2 3 4 . 4 Leg 1 | . . . . 1 Wheel . | . . . . . Hover . | . . . . . Flight . | . . . . . Utility 11 | 2 3 2 . 4 Device 3 | 1 . 1 . 1 Storage 3 | 1 1 1 . . Processor 1 | . 1 . . . Hackware . | . . . . . Protection 4 | . 1 . . 3 Artifact . | . . . . . Weapon 16 | 2 4 4 . 6 Energy Gun 5 | 2 . 3 . . Energy Cannon 2 | . 2 . . . Ballistic Gun 5 | . 1 . . 4 Ballistic Cannon . | . . . . . Launcher 1 | . . . . 1 Special Weapon 1 | . . 1 . . Impact Weapon . | . . . . . Slashing Weapon 2 | . 1 . . 1 Piercing Weapon . | . . . . . Special Melee Weapon . | . . . . . Unidentified Prototypes 4 | . . 1 . 3 Parts Lost 17 | . 2 2 . 13 Power 4 | . 1 1 . 2 Propulsion 5 | . . . . 5 Utility 4 | . 1 1 . 2 Weapon 4 | . . . . 4 Highest Loss Streak 8 | . 2 1 . 8 To Critical Strikes 2 | . . . . 2 Average Backups 11 | 2 8 11 20 18 Power 1 | . 1 1 2 1 Propulsion 2 | . 1 1 4 3 Utility 2 | . 2 2 5 4 Weapon 4 | . 2 5 8 7 Tool/Special . | . . . . . Unused Backups 20 | . 8 2 . 10 Power 3 | . 1 . . 2 Propulsion 5 | . 3 1 . 1 Utility 5 | . 1 1 . 3 Weapon 6 | . 3 . . 3 Tool/Special 1 | . . . . 1 Average Slot Usage (%) 97 | . 97 97 100 95 Engine 9 | . 8 9 11 10 Core 2 | . 5 1 . . Treads 30 | . 27 33 33 31 Device 6 | . 2 7 11 9 Storage 12 | . 14 11 11 11 Processor 2 | . 5 . . . Protection 2 | . 4 3 . 1 Energy Gun 20 | . 12 25 33 27 Energy Cannon 4 | . 7 5 . . Ballistic Gun 3 | . 7 . . 1 Peak Build Rating 39 | 7 14 24 24 39 Average Rating 16 | 5 9 20 24 24 On Entrance 13 | . 7 14 24 24 Naked Turns . | . . . . . Heaviest Build 59 | 12 26 57 57 59 Greatest Support 69 | 40 46 69 66 66 Greatest Overweight (x) 1 | . . . . 1 Average Overweight (x) . | . . . . . Largest Inventory Capacity 20 | 8 10 20 20 20 Average Capacity 12 | 7 9 12 20 20 Most Carried 20 | 4 10 20 20 20 Average Carried 11 | 2 8 11 20 19 Final Capacity 20 | 8 10 20 20 20 Final Carried 20 | 4 10 20 20 16 Class Distribution -------------------- 54% | Mutant 43% | Gunner Dominant Class ---------------- Mutant | -10/Materials Gunner | -9/Materials Gunner | -9/Mines Gunner | -9/Exiles Resources | -11 -10 -9 -9 -9 ----------- Run | Yrd Mat Mat Min Exi Matter Collected 768 | 270 231 110 . 157 Remotely . | . . . . . Salvage Created 2277 | 93 625 1139 300 120 Parts 124 | 3 49 58 12 2 Haulers Intercepted 6 | . 2 4 . . Recyclers Shooed 1 | . 1 . . . Parts Field Recycled . | . . . . . Retrieved Matter . | . . . . . Parts Self-Destructed . | . . . . . Prevented . | . . . . . Kills | -11 -10 -9 -9 -9 ------- Run | Yrd Mat Mat Min Exi Combat Hostiles Destroyed 42 | . 11 18 8 5 Melee 2 | . . . . 2 Guns 29 | . 11 11 7 . Cannons 2 | . . 2 . . AOE 7 | . . 3 1 3 Classes Destroyed 11 | 2 5 3 . 1 Worker 3 | . 2 1 . . Builder 1 | . . 1 . . Tunneler 5 | 1 3 1 . . Hauler 6 | . 2 4 . . Recycler 3 | 1 . 2 . . Watcher 4 | . 2 2 . . Swarmer 12 | . 3 6 3 . Grunt 18 | . 8 6 4 . Brawler 2 | . . 1 1 . Sentry 5 | . . 5 . . Assembled 4 | . . . . 4 Best Kill Streak 7 | 2 4 7 3 5 Combat Bots Only 5 | . 3 5 3 5 Max Kills in Single Turn 4 | 1 1 4 2 2 Gunslinging 1 | . . 1 1 . Exploded 2 | . . 2 1 2 Melee 1 | . . . . 1 Uniques/NPCs Destroyed 1 | . . . . 1 8R-AWN (-9/Exiles) Combat | -11 -10 -9 -9 -9 -------- Run | Yrd Mat Mat Min Exi Hostile Shots Fired 258 | . 72 86 16 84 Missed 70 | . 19 28 3 20 Hits 188 | . 53 58 13 64 Melee 14 | . . . . 14 Projectile 174 | . 53 58 13 50 Critical Strikes 20 | . 2 5 . 13 Damage Taken 3244 | . 616 815 133 1680 Core 552 | . 141 152 . 259 Absorbed by Shields . | . . . . . Regen/Repaired (Parts) 190 | . 190 . . . Core Remaining (%) 71 | 100 43 . . . Volleys Fired 121 | 4 62 41 11 3 Largest 3 | 2 2 3 3 1 Hottest 135 | 90 112 135 135 30 Shots Fired 271 | 8 123 104 33 3 Gun 228 | 8 117 69 33 1 Cannon 40 | . 6 34 . . Launcher 2 | . . . . 2 Special 1 | . . 1 . . Kinetic 49 | . 48 . . 1 Thermal 78 | 8 69 1 . . Explosive 2 | . . . . 2 Electromagnetic 142 | . 6 103 33 . Robot Hit Streak 20 | 2 11 20 7 5 Robot Miss Streak 5 | 2 5 5 4 1 Penetration Max . | . . . . . Secondary Targets 8 | . 3 3 2 . Max Gunslinging Chain 2 | . 1 2 1 . Shots Hit Robots 188 | 3 71 73 24 17 Core Hits 107 | 3 37 42 14 11 Critical Kills . | . . . . . Critical Parts Destroyed . | . . . . . Critical Strikes 4 | . . . . 4 Sever 4 | . . . . 4 Melee Attacks 20 | . 5 . . 15 Impact . | . . . . . Slashing 20 | . 5 . . 15 Piercing . | . . . . . Sneak Attacks 1 | . . . . 1 Combat Hostiles . | . . . . . Follow-up Attacks . | . . . . . Damage Inflicted 3740 | 36 817 1603 470 814 Guns 1860 | 36 695 818 311 . Cannons 557 | . 112 445 . . Explosions 588 | . . 289 159 140 Melee 674 | . . . . 674 Ramming 61 | . 10 51 . . Kinetic 241 | . 241 . . . Thermal 938 | 36 454 289 159 . Explosive 140 | . . . . 140 Electromagnetic 1686 | . 112 1263 311 . Impact . | . . . . . Slashing 674 | . . . . 674 Piercing . | . . . . . Highest Corruption 4 | . . . . 4 Average Corruption 4 | . . . . 4 Corruption Purged . | . . . . . Corruption Blocked . | . . . . . Effects 1 | . . . . 1 Message Errors 1 | . . . . 1 Overload Shots . | . . . . . Overflow Damage 34 | . . 3 . 31 Projectiles 3 | . . 3 . . Explosions . | . . . . . Melee 31 | . . . . 31 Knockbacks 1 | . . 1 . . Impact 1 | . . 1 . . Kinetic . | . . . . . Secondary . | . . . . . Self-Inflicted Damage 99 | . . 60 . 39 Shots 3 | . . 2 . 1 Rammed 8 | . 2 6 . . Targets Rammed 11 | . 3 8 . . Kicked . | . . . . . Crushed 3 | . 1 2 . . Highest Temperature 252 | 90 252 203 211 2 Average Temperature 61 | 41 54 66 78 2 Received Heat Transfer 674 | . 333 264 57 20 Siege Activations . | . . . . . Martial Activations . | . . . . . Shielding Activations . | . . . . . Robots Disrupted . | . . . . . Combat Hostiles . | . . . . . Robots Corrupted 2 | . . 2 . . Combat Hostiles 2 | . . 2 . . Parts Fried 15 | . . 12 3 . Impact Corruptions . | . . . . . Robots Melted . | . . . . . Combat Hostiles . | . . . . . Parts Melted 2 | . 1 1 . . Heat Transferred 1796 | 99 1097 400 200 . Parts Sabotaged . | . . . . . Parts Stolen . | . . . . . Parts Stripped . | . . . . . Power Chain Reactions 8 | . . 6 2 . Alert | -11 -10 -9 -9 -9 ------- Run | Yrd Mat Mat Min Exi Maximum Alert Level 1 | . . 1 . . Low Security (%) 91 | 100 100 77 100 . Level 1 8 | . . 22 . . Level 2 . | . . . . . Level 3 . | . . . . . Level 4 . | . . . . . Level 5 . | . . . . . High Security . | . . . . . Max Security . | . . . . . Peak Influence 247 | 10 82 247 155 . Initial 78 | . . . 78 . Average 50 | . 18 90 69 . Influence Increases 1209 | 10 350 632 217 . Destroy 0b10 Robot/C 740 | . 220 360 160 . Destroy 0b10 Robot/NC 110 | 10 45 55 . . Destroy Leader 180 | . 48 102 30 . Successful Hack 35 | . 35 . . . Select Force Hacks 30 | . . 30 . . Disable Machine 45 | . . 45 . . Destroy Structure 39 | . 2 25 12 . Lose Combat Pursuer 30 | . . 15 15 . Influence Decreases 1209 | 10 350 431 303 115 Entered New Map 238 | . . . 123 115 Time Decay 934 | 10 323 421 180 . Lost Part 30 | . 20 10 . . Purge Threat 7 | . 7 . . . Squads Dispatched 2 | . . 2 . . Investigation 1 | . . 1 . . Extermination . | . . . . . Reinforcement 1 | . . 1 . . Assault . | . . . . . Garrison . | . . . . . Intercept . | . . . . . Searches Triggered . | . . . . . Construction Impeded . | . . . . . Haulers Reinforced . | . . . . . Active Scanning Responses . | . . . . . Cargo Convoy Interrupts . | . . . . . Stealth | -11 -10 -9 -9 -9 --------- Run | Yrd Mat Mat Min Exi Distress Signals 2 | . 1 1 . . Communications Jammed . | . . . . . Distress Signals . | . . . . . Times Spotted 68 | . 23 29 9 7 Peak Tracking Total 9 | . 4 6 4 9 Tactical Retreats 3 | . . 1 1 1 Traps | -11 -10 -9 -9 -9 ------- Run | Yrd Mat Mat Min Exi Traps Triggered . | . . . . . Indirectly . | . . . . . Trap Hack Attempts . | . . . . . Triggered . | . . . . . Disarmed . | . . . . . Reprogrammed . | . . . . . Reused . | . . . . . Traps Extracted . | . . . . . Installed . | . . . . . Triggered . | . . . . . Machines | -11 -10 -9 -9 -9 ---------- Run | Yrd Mat Mat Min Exi Machines Disabled 5 | . . 3 . 2 Max in Single Turn 1 | . . 1 . 1 Machines Repaired . | . . . . . Machines Dismantled . | . . . . . Machines Sabotaged . | . . . . . Overloaded Fab Kills . | . . . . . Hacking | -11 -10 -9 -9 -9 --------- Run | Yrd Mat Mat Min Exi Machines Accessed 14 | . 9 4 . 1 Terminals 9 | . 7 2 . . Fabricators . | . . . . . Repair Stations 1 | . 1 . . . Recycling Units 2 | . 1 1 . . Scanalyzers 1 | . . 1 . . Garrison Access . | . . . . . Total Hacks 36 | . 27 8 . 1 Successful 19 | . 13 5 . 1 Failed 17 | . 14 3 . . Catastrophic 3 | . 3 . . . Database Lockouts . | . . . . . Manual 10 | . 5 4 . 1 Terminals 23 | . 19 4 . . Fabricators . | . . . . . Repair Stations 5 | . 5 . . . Recycling Units 5 | . 3 2 . . Scanalyzers 2 | . . 2 . . Garrison Access . | . . . . . Terminal Hacks 8 | . 6 1 . 1 Terminal Index 1 | . 1 . . . Unreport Threat 1 | . 1 . . . Locate Traps 1 | . 1 . . . Hauler Manifests 1 | . 1 . . . Zone Layout 3 | . 2 1 . . Proto ID Catalog 1 | . . . . 1 Fabricator Hacks . | . . . . . Repair Station Hacks 4 | . 4 . . . Scan Component 2 | . 2 . . . Repair 2 | . 2 . . . Recycling Unit Hacks 2 | . 1 1 . . Report Inventory 2 | . 1 1 . . Scanalyzer 2 | . . 2 . . Insert Component 1 | . . 1 . . Analyze 1 | . . 1 . . Garrison Access Hacks . | . . . . . Unauthorized Hacks 3 | . 2 1 . . Terminals 2 | . 2 . . . Botnet 2 | . 2 . . . Fabricators . | . . . . . Repair Stations . | . . . . . Recycling Units 1 | . . 1 . . Tunnel 1 | . . 1 . . Scanalyzers . | . . . . . Garrison Access . | . . . . . Data Cores Recovered . | . . . . . Used . | . . . . . Hacking Detections 11 | . 9 2 . . Full Trace Events . | . . . . . Feedback Events . | . . . . . Feedback Blocked . | . . . . . Robot Schematics Acquired . | . . . . . Robots Built . | . . . . . Authchips . | . . . . . Time . | . . . . . Total Robot Build Rating . | . . . . . Part Schematics Acquired 1 | . . 1 . . Parts Built . | . . . . . Authchips . | . . . . . Time . | . . . . . Total Part Build Rating . | . . . . . Parts Repaired 2 | . 2 . . . Time 52 | . 52 . . . Parts Recycled . | . . . . . Recycled Matter . | . . . . . Retrieved Matter . | . . . . . Retrieved Components . | . . . . . Parts Scanalyzed 1 | . . 1 . . Part Schematics Acquired 1 | . . 1 . . Parts Damaged . | . . . . . Bothacking | -11 -10 -9 -9 -9 ------------ Run | Yrd Mat Mat Min Exi Used RIF Installer . | . . . . . Robots Hacked . | . . . . . Non-combat . | . . . . . Combat . | . . . . . Robot Hacks Applied . | . . . . . Relay Couplers Released . | . . . . . Fabnet Peak Effective % . | . . . . . Robots Rewired . | . . . . . Allies Hacked . | . . . . . Hacks Repelled . | . . . . . Allies | -11 -10 -9 -9 -9 -------- Run | Yrd Mat Mat Min Exi Total Allies . | . . . . . Largest Group . | . . . . . Highest-Rated Group . | . . . . . Highest-Rated Ally . | . . . . . Total Orders . | . . . . . Ally Attacks . | . . . . . Total Damage . | . . . . . Kills . | . . . . . Allies Corrupted . | . . . . . Allies Melted . | . . . . . Intel | -11 -10 -9 -9 -9 ------- Run | Yrd Mat Mat Min Exi Active Infowar (turns) 396 | 120 276 . . . Seismic 396 | 120 276 . . . Robot Analysis Total . | . . . . . Derelict Logs Recovered . | . . . . . Drone Launches . | . . . . . Drone Recoveries . | . . . . . Exploration | -11 -10 -9 -9 -9 ------------- Run | Yrd Mat Mat Min Exi Turns Passed 4253 | 205 1722 1392 375 559 Spaces Moved 2341 | 115 877 790 233 326 Core 8 | 8 . . . . Treads 2333 | 107 877 790 233 326 Legs . | . . . . . Wheels . | . . . . . Hover . | . . . . . Flight . | . . . . . Fastest Speed 50 | 50 160 145 145 145 Average Speed 153 | 152 160 151 145 149 Slowest Speed 240 | 160 160 160 145 240 Overloaded Moves . | . . . . . Propulsion Burnouts . | . . . . . Robots Hopped . | . . . . . Potential Cave-ins . | . . . . . Cave-ins Triggered . | . . . . . Exploration Rate (%) 48 | 5 93 52 45 49 Regions Visited 4 Branch Regions 2 Pre-discovered Areas 2 | . . 1 1 . Known Exits Taken . | . . . . . Unknown Exits Taken 4 | 1 1 1 1 . Scrap Searched 2 | . . . 2 . Spaces Dug 3 | . 2 1 . . Terrain Destroyed 57 | . 2 24 14 17 Melee 2 | . 2 . . . Projectile 1 | . . 1 . . AOE 54 | . . 23 14 17 Terrain Rammed . | . . . . . Walls Destroyed . | . . . . . Machines Disabled . | . . . . . Actions | -11 -10 -9 -9 -9 --------- Run | Yrd Mat Mat Min Exi Total 2738 | 136 1084 894 245 379 Wait 110 | 2 81 22 2 3 Move 2337 | 114 876 789 232 326 Hop . | . . . . . Pick Up 52 | 9 23 14 . 6 Fast Attach 12 | 2 4 5 . 1 Attach 20 | 5 2 2 . 11 Detach 1 | . . . . 1 Swap 23 | . 8 5 . 10 Drop 31 | . 20 8 . 3 Fire 121 | 4 62 41 11 3 Melee 20 | . 5 . . 15 Ram . | . . . . . Kick . | . . . . . Crush 11 | . 3 8 . . Escape Stasis . | . . . . . Rewire . | . . . . . Trap . | . . . . . Miscellaneous . | . . . . . Route ------- -11/Scrapyard -10/Materials (discovered 5 exits: *Mat x3 / [*Min] / [*Sub]) -9/Materials (discovered 3 exits: [*Mat x2] / [*Min]) -9/Mines (discovered 2 exits: [*Mat] / *Exi) -9/Exiles (discovered 1 exit: [*Min]) History --------- Turn | Location | Event 2 | -11/Scrapyard | Met Revision 17 14 | -11/Scrapyard | Discovered new exit (range 16) 206 | -11/Scrapyard | Entered Materials 302 | -10/Materials | Build established: Mutant 720 | -10/Materials | Discovered new exit (range 3) 998 | -10/Materials | Discovered new exit (range 13) 1041 | -10/Materials | Repaired Lgt. Treads 1068 | -10/Materials | Repaired Lgt. Treads 1163 | -10/Materials | Core integrity fell below 50% 1432 | -10/Materials | Discovered new exit (range 16) 1642 | -10/Materials | Discovered new exit (range 12) 1805 | -10/Materials | Discovered new exit (range 8) 1928 | -10/Materials | Entered another Materials area 1928 | -9/Materials | Evolved 2 slots: Propulsion x1, Weapon x1 2538 | -9/Materials | Discovered new exit (range 13) 2592 | -9/Materials | Build established: Gunner 2668 | -9/Materials | Discovered new exit (range 14) 3080 | -9/Materials | Discovered new exit (range 16) 3320 | -9/Materials | Entered Mines 3526 | -9/Mines | Learned location of Storage (-7) 3625 | -9/Mines | Discovered new exit (range 8) 3684 | -9/Mines | Deemed a non-threat by the Exiles lab entrance 3686 | -9/Mines | Discovered new exit (range 5) 3695 | -9/Mines | Entered Exiles 3730 | -9/Exiles | Discovered new exit (range 15) 3752 | -9/Exiles | Met 8R-AWN 3780 | -9/Exiles | Met EX-HEX 3826 | -9/Exiles | Met EX-BIN 3849 | -9/Exiles | Aligned with FarCom system 3851 | -9/Exiles | Given EX-Vault access code 3894 | -9/Exiles | Opened EX-Vault 3908 | -9/Exiles | Found Longsword +1 3938 | -9/Exiles | Warned to stay clear of 0b10 Research branches 4046 | -9/Exiles | Attacked by the Exiles 4060 | -9/Exiles | Core integrity fell below 50% 4089 | -9/Exiles | Destroyed 8R-AWN 4100 | -9/Exiles | Found Prototype Ballistic Gun 4103 | -9/Exiles | Found Prototype Protection 4106 | -9/Exiles | Lost 8 parts (1p3n2u2w) 4114 | -9/Exiles | Identified 8R-AWN's Boregun 4253 | -9/Exiles | Core integrity fell below 20% 4254 | -9/Exiles | Destroyed by DAS Turret with DAS Cannon Last Messages --------------- 04103_ Dropped Mining Laser. 04103_ Acquired Prototype Protection. 04108_ Acquired 100 matter. 04112_ Dropped Lgt. Armor Plating. 04113_ Acquired Prototype Device. 04113_ Identified Exp. Heat Sink. 04114_ Identified 8R-AWN's Boregun. 04116_ Identified Adv. Myomer Leg. 04122_ Acquired 4 matter. 04125_ Acquired 3 matter. 04131_ Acquired 7 matter. 04161_ Acquired 20 matter. 04164_ Acquired 15 matter. 04228_ Imp. EM Shotgun destroyed. 04239_ Adv. Treads destroyed. 04239_ Imp. EM Shotgun destroyed. 04241_ Ion Engine destroyed. 04246_ Acquired 8 matter. 04248_ Lgt. Treads destroyed. 04254_ VSRLSNNLVTGW:0# % LYKKK2KCABEKB& Map ----- +----------------------------------------------------+ | ????????????????????????"###??# #?#"""""""#??? | | ??????????????????????????????# #?#"""""""#??? | | ??????????????????????????????# #?#"""""""#??? | | ?????????????????????????????## ###"" """"#??? | | ?????????????????????????????#" """"#??? | | ?????????????????????????????#" """#??? | | ?????????????????????????????#" """#??? | | ?????????????????????????????#" """#??? | | ?????????????????????????????#" """#??? | | ?????????????????????????????#" """#??? | | ?????????????????????????????## """"??? | | ??????????????????????????????# """#??? | | ??????????????????????????????#" "X" """"??? | | ??????????????????????????????#" """ #??? | | ??????????????????????????????#" """""""""#??? | | ????????????????" ???????????##" ###########??? | | ????????????????# ??????????##"" #????????????? | | ??????????????### ##??######"" #????????????? | | ????????????###X# #"###""""""" ##???????????? | | ??????????? """""" " "" ##???######## | | ??????????? "" """ " #####""""""" | | ?????????? " " " """ " | | ?????????? "" | | ?????????? " | | ????????? % | | ????????? @ % | | ?????????" | | ??????????"" % %"""""" | | ?????????" ######""" | | ?????????" %""##????#####""" | | ?????????"" """##?????????##""" | | ?????????" """##???????????#"""" | | ?????????" ""#???????????##"" | | ?????????? ##?????????###"""" | | ?????????? ?????????##""" | | ?????????? ?????????""" | | ??????????? ?????? | | ???????????" ? ? ?????? | | ???????????? ????????????? " | | ???????????? ??????????????? "" """ | | ??????????????????????????????## ##""" " " ""#" | | ???????????????????????????????# ??#####""" """##" | | ???????????????????????????????????????###""""#### | | ?????????????????????????????????????????######??? | | ?????????????????????????????????????????????????? | | ?????????????????????????????????????????????????? | | ?????????????????????????????????????????????????? | | ?????????????????????????????????????????????????? | | ?????????????????????????????????????????????????? | | ?????????????????????????????????????????????????? | +----------------------------------------------------+ Best States ------------- Heat Dissipation 54 Energy Generation 14 Energy Capacity 265 Matter Stores 300 Matter Capacity 300 Sight Range 16 Terrain Scan Density 10 Armor Coverage 225 Evasion (%) 50 Targeting Accuracy 5 Recoil Reduction 3 Item Schematics ----------------- Adv. Treads | -9/Materials | Scanalyzed Robot Schematics ------------------ None Fabricated ------------ Nothing Repaired ---------- Lgt. Treads | 15% | -10/Materials Lgt. Treads | 49% | -10/Materials Alien Tech Used ----------------- None Achievements -------------- None Challenges ------------ None Game ------ Seed HeavyFlakTerrabomb Manual? 0 Play Time 00:46:34 Cumulative 249.1 hours Start 2025.08.10 @ 20:16:24 End 2025.08.10 @ 21:25:10 Sessions 3 Manual Loads 0 Difficulty Rogue Special Mode None Game No. 120 Rogue 99 Adventurer 21 Explorer 0 Win Type - Total 12 Types 8/0/3/1/0/0/0/0/0/0 Lore% 46 Gallery% 65 Achievement% 61 Wizard Run 0 Options --------- Layout 2 ASCII 0 Keyboard 0 Movement Arrows Keybinds 0 Fullscreen 1 Font 16/SmallcapsGlow Map View 50x49 Zoom Use 0% Tactical HUD 1 Map Filters NONE Filters NONE Steam SD RUN: 5cc7ed1e-0d21-412d-bcb9-470c1feb32fc